[Event "Skalica SCHAEFFLER Open 2019"]
[Site "Skalica"]
[Date "2019.08.27"]
[Round "4.8"]
[White "Durana, Jonas"]
[Black "Benci, Rudolf"]
[Result "0-1"]
[ECO "B50"]
[WhiteElo "1304"]
[BlackElo "1635"]
[Annotator "NA"]
[PlyCount "62"]
[EventDate "2019.08.25"]
[EventType "swiss"]
[EventCountry "SVK"]
[SourceTitle "playchess.com"]
[Source "ChessBase"]
[SourceQuality "1"]
[TimeControl "40/5400+30:1800+30"]

1. e4 {[%emt 0:00:00]} c5 {[%emt 0:00:00]} 2. Nf3 {[%emt 0:00:00]} d6 {[%emt 0:00:00]} 3. c4 {[%emt 0:00:00]} e5 {[%emt 0:00:30]} 4. Nc3 {[%emt 0:00:06]} Nf6 {[%emt 0:00:02]} 5. Be2 {[%emt 0:00:50]} Nc6 {[%emt 0:00:02]} 6. O-O {[%emt 0:00:41]} Be7 {[%emt 0:00:09]} 7. d3 {[%emt 0:01:41]} O-O {[%emt 0:01:33]} 8. h3 {[%emt 0:04:13]} h6 {[%emt 0:00:54]} 9. Ne1 {[%emt 0:06:56]} Nd4 {[%emt 0:00:42]} 10. Nc2 {[%emt 0:00:50]} Ne8 {[%emt 0:03:29]} 11. f4 {[%emt 0:03:57]} f5 {[%emt 0:02:12]} 12. fxe5 {[%emt 0:01:53]} dxe5 {[%emt 0:00:11]} 13. exf5 {[%emt 0:06:29]} Rxf5 {[%emt 0:05:17]} 14. Ne3 {[%emt 0:00:30]} Rxf1+ {[%emt 0:00:30]} 15. Qxf1 {[%emt 0:01:25]} Be6 {[%emt 0:06:26]} 16. b3 {[%emt 0:08:04]} Bg5 {[%emt 0:14:14]} 17. Rb1 {[%emt 0:16:39]} Nf6 {[%emt 0:04:25]} 18. Qf2 {[%emt 0:02:45]} Qd7 {[%emt 0:00:56]} 19. h4 {[%emt 0:12:32]} Bxe3 {[%emt 0:17:56]} 20. Bxe3 {[%emt 0:00:26]} Rf8 {[%emt 0:00:30]} 21. Rf1 {[%emt 0:01:18]} Nxe2+ {[%emt 0:06:26]} 22. Qxe2 {[%emt 0:00:18]} b6 {[%emt 0:00:49]} 23. Rf2 {[%emt 0:07:49]} Rd8 {[%emt 0:12:49]} 24. Bxh6 {[%emt 0:02:36]} Ng4 {[%emt 0:01:32]} 25. Bg5 {[%emt 0:02:38]} Nxf2 {[%emt 0:05:00]} 26. Bxd8 {[%emt 0:00:09]} Ng4 {[%emt 0:00:17]} 27. Bg5 {[%emt 0:00:29]} Qd4+ {[%emt 0:00:09]} 28. Kh1 {[%emt 0:03:09]} Qxc3 {[%emt 0:00:25]} 29. g3 {[%emt 0:09:30]} Bf5 {[%emt 0:00:34]} 30. Qf3 {[%emt 0:03:22]} Qxd3 {[%emt 0:06:01]} 31. Qa8+ {[%emt 0:00:26]} Kh7 {[%emt 0:00:10]} 0-1

[Event "Skalica SCHAEFFLER Open 2019"]
[Site "Skalica"]
[Date "2019.08.27"]
[Round "4.9"]
[White "Kanak, Matyas"]
[Black "Kadlcik, Marek"]
[Result "1-0"]
[ECO "B54"]
[WhiteElo "1540"]
[BlackElo "1259"]
[Annotator "NA"]
[PlyCount "33"]
[EventDate "2019.08.25"]
[EventType "swiss"]
[EventCountry "SVK"]
[SourceTitle "playchess.com"]
[Source "ChessBase"]
[SourceQuality "1"]
[TimeControl "40/5400+30:1800+30"]

1. e4 {[%emt 0:00:00]} c5 {[%emt 0:00:00]} 2. Nf3 {[%emt 0:00:00]} d6 {[%emt 0:00:00]} 3. c4 {[%emt 0:00:07]} Nc6 {[%emt 0:00:00]} 4. d4 {[%emt 0:00:07]} cxd4 {[%emt 0:00:29]} 5. Nxd4 {[%emt 0:00:00]} Bd7 {[%emt 0:00:26]} 6. Nc3 {[%emt 0:00:17]} a6 {[%emt 0:00:09]} 7. Be3 {[%emt 0:00:29]} Nf6 {[%emt 0:00:13]} 8. Be2 {[%emt 0:00:07]} Qc7 {[%emt 0:02:56]} 9. O-O {[%emt 0:00:31]} e5 {[%emt 0:00:20]} 10. Nb3 {[%emt 0:03:42]} Be7 {[%emt 0:00:43]} 11. f4 {[%emt 0:00:45]} O-O {[%emt 0:01:17]} 12. Rc1 {[%emt 0:02:12]} Rac8 {[%emt 0:02:00]} 13. Nd5 {[%emt 0:03:19]} Qb8 {[%emt 0:01:16]} 14. Nxe7+ {[%emt 0:06:56]} Nxe7 {[%emt 0:02:24]} 15. fxe5 {[%emt 0:00:08]} Nxe4 {[%emt 0:08:04]} 16. Bf3 {[%emt 0:01:52]} Nc5 {[%emt 0:03:57]} 17. Nxc5 {[%emt 0:00:11]} 1-0

[Event "Skalica SCHAEFFLER Open 2019"]
[Site "Skalica"]
[Date "2019.08.27"]
[Round "4.10"]
[White "Polozov Yaroslavl"]
[Black "Delgerdalai, Bayarjavkhlan"]
[Result "1/2-1/2"]
[ECO "D36"]
[WhiteElo "1000"]
[BlackElo "1460"]
[Annotator "NA"]
[PlyCount "64"]
[EventDate "2019.08.25"]
[EventType "swiss"]
[EventCountry "SVK"]
[SourceTitle "playchess.com"]
[Source "ChessBase"]
[SourceQuality "1"]
[TimeControl "40/5400+30:1800+30"]

1. d4 {[%emt 0:00:00]} d5 {[%emt 0:00:00]} 2. c4 {[%emt 0:00:00]} e6 {[%emt 0:00:00]} 3. Nc3 {[%emt 0:00:00]} Nf6 {[%emt 0:00:00]} 4. Bg5 {[%emt 0:00:06]} Nbd7 {[%emt 0:00:23]} 5. Nf3 {[%emt 0:00:46]} c6 {[%emt 0:00:21]} 6. e3 {[%emt 0:00:12]} h6 {[%emt 0:00:16]} 7. Bf4 {[%emt 0:00:18]} Be7 {[%emt 0:01:02]} 8. cxd5 {[%emt 0:00:27]} exd5 {[%emt 0:00:40]} 9. Bd3 {[%emt 0:00:08]} O-O {[%emt 0:00:46]} 10. O-O {[%emt 0:00:10]} Re8 {[%emt 0:01:06]} 11. Qc2 {[%emt 0:00:22]} b6 {[%emt 0:02:00]} 12. Rfe1 {[%emt 0:01:51]} Bb7 {[%emt 0:01:56]} 13. Rac1 {[%emt 0:00:44]} Rc8 {[%emt 0:01:00]} 14. Qa4 {[%emt 0:06:48]} a5 {[%emt 0:03:02]} 15. h3 {[%emt 0:11:42]} c5 {[%emt 0:08:12]} 16. Bb5 {[%emt 0:04:18]} Rf8 {[%emt 0:03:50]} 17. a3 {[%emt 0:11:04]} Nb8 {[%emt 0:13:57]} 18. Ne5 {[%emt 0:06:23]} Bd6 {[%emt 0:02:20]} 19. Bh2 {[%emt 0:08:42]} Bxe5 {[%emt 0:03:05]} 20. Bxe5 {[%emt 0:00:09]} Nbd7 {[%emt 0:06:47]} 21. Bxd7 {[%emt 0:06:24]} Nxd7 {[%emt 0:00:52]} 22. Bd6 {[%emt 0:00:16]} Re8 {[%emt 0:01:44]} 23. Qd1 {[%emt 0:01:58]} Nf8 {[%emt 0:10:07]} 24. Bg3 {[%emt 0:02:39]} Ne6 {[%emt 0:02:59]} 25. Nb5 {[%emt 0:03:04]} Re7 {[%emt 0:02:01]} 26. Nd6 {[%emt 0:03:34]} Rc6 {[%emt 0:02:30]} 27. Nf5 {[%emt 0:02:10]} Rd7 {[%emt 0:03:44]} 28. Qg4 {[%emt 0:10:52]} Qg5 {[%emt 0:05:43]} 29. Qf3 {[%emt 0:04:37]} Qd8 {[%emt 0:02:07]} 30. Bh4 {[%emt 0:02:12]} Qf8 {[%emt 0:01:06]} 31. Qg4 {[%emt 0:03:53]} Kh7 {[%emt 0:00:34]} 32. Ng3 {[%emt 0:04:56]} Rdd6 {[%emt 0:03:42]} 1/2-1/2

[Event "Skalica SCHAEFFLER Open 2019"]
[Site "Skalica"]
[Date "2019.08.28"]
[Round "5.1"]
[White "Tutkova, Ludmila"]
[Black "Fizerova, Lucie"]
[Result "0-1"]
[ECO "C42"]
[WhiteElo "1085"]
[BlackElo "1563"]
[Annotator "NA"]
[PlyCount "70"]
[EventDate "2019.08.25"]
[EventType "swiss"]
[EventCountry "SVK"]
[SourceTitle "playchess.com"]
[Source "ChessBase"]
[SourceQuality "1"]
[TimeControl "40/5400+30:1800+30"]

1. e4 {[%emt 0:03:18]} e5 {[%emt 0:00:00]} 2. Nf3 {[%emt 0:00:17]} Nf6 {[%emt 0:00:00]} 3. Nc3 {[%emt 0:00:09]} Bb4 {[%emt 0:00:00]} 4. d3 {[%emt 0:00:33]} Nc6 {[%emt 0:00:12]} 5. Be2 {[%emt 0:00:10]} O-O {[%emt 0:00:23]} 6. O-O {[%emt 0:00:07]} Bxc3 {[%emt 0:01:27]} 7. bxc3 {[%emt 0:00:12]} d5 {[%emt 0:00:16]} 8. Bg5 {[%emt 0:01:00]} dxe4 {[%emt 0:01:43]} 9. Bxf6 {[%emt 0:00:52]} Qxf6 {[%emt 0:00:50]} 10. dxe4 {[%emt 0:00:22]} Rd8 {[%emt 0:01:55]} 11. Qc1 {[%emt 0:01:06]} Bg4 {[%emt 0:01:24]} 12. Re1 {[%emt 0:03:00]} Rd6 {[%emt 0:02:07]} 13. Rb1 {[%emt 0:01:59]} b6 {[%emt 0:01:57]} 14. h3 {[%emt 0:02:12]} Bh5 {[%emt 0:01:37]} 15. Qg5 {[%emt 0:02:32]} Qxg5 {[%emt 0:01:46]} 16. Nxg5 {[%emt 0:00:11]} Bxe2 {[%emt 0:01:05]} 17. Rxe2 {[%emt 0:00:17]} Rad8 {[%emt 0:00:29]} 18. Ree1 {[%emt 0:02:08]} Rd2 {[%emt 0:00:51]} 19. Rbc1 {[%emt 0:00:43]} R2d6 {[%emt 0:11:21]} 20. Kh2 {[%emt 0:01:46]} Na5 {[%emt 0:03:47]} 21. Rf1 {[%emt 0:02:07]} f6 {[%emt 0:01:02]} 22. Nf3 {[%emt 0:00:46]} Rc6 {[%emt 0:00:50]} 23. Rcd1 {[%emt 0:00:30]} Rcd6 {[%emt 0:14:22]} 24. Rxd6 {[%emt 0:01:48]} Rxd6 {[%emt 0:00:55]} 25. Re1 {[%emt 0:00:19]} Nc4 {[%emt 0:00:00]} 26. Kg3 {[%emt 0:02:20]} Kf7 {[%emt 0:02:53]} 27. Re2 {[%emt 0:00:17]} Ke7 {[%emt 0:02:44]} 28. Nh4 {[%emt 0:01:04]} g6 {[%emt 0:00:04]} 29. f4 {[%emt 0:00:36]} exf4+ {[%emt 0:00:33]} 30. Kxf4 {[%emt 0:00:26]} g5+ {[%emt 0:00:36]} 31. Kg4 {[%emt 0:01:31]} gxh4 {[%emt 0:00:19]} 32. Kxh4 {[%emt 0:00:11]} Rd2 {[%emt 0:02:11]} 33. Rxd2 {[%emt 0:00:53]} Nxd2 {[%emt 0:00:04]} 34. Kh5 {[%emt 0:00:10]} Kf7 {[%emt 0:00:11]} 35. Kh6 {[%emt 0:00:09]} Kg8 {[%emt 0:00:01]} 0-1

[Event "Skalica SCHAEFFLER Open 2019"]
[Site "Skalica"]
[Date "2019.08.28"]
[Round "5.2"]
[White "Krupnova, Anna"]
[Black "Romanova, Ela"]
[Result "1-0"]
[ECO "B21"]
[WhiteElo "1712"]
[BlackElo "1337"]
[Annotator "NA"]
[PlyCount "63"]
[EventDate "2019.08.25"]
[EventType "swiss"]
[EventCountry "SVK"]
[SourceTitle "playchess.com"]
[Source "ChessBase"]
[SourceQuality "1"]
[TimeControl "40/5400+30:1800+30"]

1. e4 {[%emt 0:00:00]} c5 {[%emt 0:00:00]} 2. d4 {[%emt 0:02:29]} cxd4 {[%emt 0:00:54]} 3. c3 {[%emt 0:02:29]} dxc3 {[%emt 0:03:30]} 4. Nxc3 {[%emt 0:00:31]} Nc6 {[%emt 0:01:07]} 5. Nf3 {[%emt 0:01:57]} d6 {[%emt 0:01:11]} 6. Bc4 {[%emt 0:01:24]} Nf6 {[%emt 0:06:19]} 7. e5 {[%emt 0:07:07]} d5 {[%emt 0:18:37]} 8. Bb5 {[%emt 0:20:57]} Ne4 {[%emt 0:18:50]} 9. Nxe4 {[%emt 0:05:44]} dxe4 {[%emt 0:00:44]} 10. Qxd8+ {[%emt 0:08:15]} Kxd8 {[%emt 0:00:29]} 11. Ng5 {[%emt 0:02:28]} Ke8 {[%emt 0:11:50]} 12. Nxe4 {[%emt 0:04:43]} Bd7 {[%emt 0:02:19]} 13. e6 {[%emt 0:10:44]} Bxe6 {[%emt 0:01:44]} 14. Bf4 {[%emt 0:02:57]} Bd5 {[%emt 0:04:47]} 15. Nc5 {[%emt 0:01:51]} a6 {[%emt 0:00:55]} 16. Bxc6+ {[%emt 0:11:53]} Bxc6 {[%emt 0:00:09]} 17. O-O {[%emt 0:00:16]} e5 {[%emt 0:02:47]} 18. Be3 {[%emt 0:00:31]} Rd8 {[%emt 0:01:10]} 19. Nb3 {[%emt 0:00:48]} f6 {[%emt 0:00:45]} 20. Na5 {[%emt 0:00:48]} Bd5 {[%emt 0:05:36]} 21. Bb6 {[%emt 0:01:03]} Rd7 {[%emt 0:03:26]} 22. Rac1 {[%emt 0:01:29]} Be7 {[%emt 0:03:34]} 23. Rc8+ {[%emt 0:00:06]} Bd8 {[%emt 0:00:10]} 24. Bxd8 {[%emt 0:00:38]} Rxd8 {[%emt 0:00:07]} 25. Rxd8+ {[%emt 0:00:09]} Kxd8 {[%emt 0:00:10]} 26. Rd1 {[%emt 0:00:08]} Kc7 {[%emt 0:02:01]} 27. Rxd5 {[%emt 0:00:15]} b6 {[%emt 0:00:46]} 28. Nc4 {[%emt 0:00:56]} Rc8 {[%emt 0:01:33]} 29. Kf1 {[%emt 0:01:40]} Kc6 {[%emt 0:04:14]} 30. Rd6+ {[%emt 0:03:51]} Kc5 {[%emt 0:02:35]} 31. Rd1 {[%emt 0:00:48]} Kc6 {[%emt 0:02:03]} 32. Rc1 {[%emt 0:00:48]} 1-0

[Event "Skalica SCHAEFFLER Open 2019"]
[Site "Skalica"]
[Date "2019.08.28"]
[Round "5.3"]
[White "Benci, Rudolf"]
[Black "Vlcek, Antonin"]
[Result "0-1"]
[ECO "A47"]
[WhiteElo "1635"]
[BlackElo "1686"]
[Annotator "NA"]
[PlyCount "35"]
[EventDate "2019.08.25"]
[EventType "swiss"]
[EventCountry "SVK"]
[SourceTitle "playchess.com"]
[Source "ChessBase"]
[SourceQuality "1"]
[TimeControl "40/5400+30:1800+30"]

1. d4 {[%emt 0:01:31]} Nf6 {[%emt 0:00:00]} 2. Bf4 {[%emt 0:00:02]} e6 {[%emt 0:00:07]} 3. e3 {[%emt 0:00:08]} b6 {[%emt 0:00:59]} 4. c3 {[%emt 0:01:18]} Bb7 {[%emt 0:00:22]} 5. Nd2 {[%emt 0:00:30]} c5 {[%emt 0:00:56]} 6. Ngf3 {[%emt 0:00:43]} Nc6 {[%emt 0:03:59]} 7. Bd3 {[%emt 0:00:40]} Nh5 {[%emt 0:02:02]} 8. Bg5 {[%emt 0:00:15]} f6 {[%emt 0:02:40]} 9. Bh4 {[%emt 0:03:23]} g6 {[%emt 0:05:13]} 10. Qc2 {[%emt 0:27:02]} g5 {[%emt 0:24:14]} 11. Bxh7 {[%emt 0:08:50]} Qe7 {[%emt 0:00:30]} 12. Bg6+ {[%emt 0:00:30]} Kd8 {[%emt 0:00:30]} 13. g4 {[%emt 0:00:30]} gxh4 {[%emt 0:00:30]} 14. gxh5 {[%emt 0:00:30]} f5 {[%emt 0:00:30]} 15. Rg1 {[%emt 0:00:30]} cxd4 {[%emt 0:00:30]} 16. exd4 {[%emt 0:00:30]} Bh6 {[%emt 0:00:30]} 17. O-O-O {[%emt 0:00:30]} Nb4 {[%emt 0:01:39]} 18. Rge1 {[%emt 0:05:30]} 0-1

[Event "Skalica SCHAEFFLER Open 2019"]
[Site "Skalica"]
[Date "2019.08.28"]
[Round "5.4"]
[White "Podskubka, Ondrej"]
[Black "Kanak, Matyas"]
[Result "1-0"]
[ECO "D00"]
[WhiteElo "1684"]
[BlackElo "1540"]
[Annotator "NA"]
[PlyCount "91"]
[EventDate "2019.08.25"]
[EventType "swiss"]
[EventCountry "SVK"]
[SourceTitle "playchess.com"]
[Source "ChessBase"]
[SourceQuality "1"]
[TimeControl "40/5400+30:1800+30"]

1. d4 {[%emt 0:05:53]} d5 {[%emt 0:00:00]} 2. Bf4 {[%emt 0:04:02]} Nf6 {[%emt 0:01:10]} 3. e3 {[%emt 0:00:18]} e6 {[%emt 0:00:42]} 4. h3 {[%emt 0:01:15]} c6 {[%emt 0:00:16]} 5. Nf3 {[%emt 0:01:02]} Nbd7 {[%emt 0:02:14]} 6. g4 {[%emt 0:00:55]} h6 {[%emt 0:00:15]} 7. Nbd2 {[%emt 0:00:52]} Be7 {[%emt 0:02:14]} 8. Bd3 {[%emt 0:00:27]} b6 {[%emt 0:00:18]} 9. Qe2 {[%emt 0:00:51]} Bb7 {[%emt 0:03:36]} 10. Ne5 {[%emt 0:12:31]} Nxe5 {[%emt 0:00:30]} 11. Bxe5 {[%emt 0:00:18]} a6 {[%emt 0:20:30]} 12. f4 {[%emt 0:00:50]} c5 {[%emt 0:04:20]} 13. c3 {[%emt 0:00:19]} Bd6 {[%emt 0:04:30]} 14. Nf3 {[%emt 0:05:10]} Bxe5 {[%emt 0:03:10]} 15. Nxe5 {[%emt 0:03:56]} Nd7 {[%emt 0:00:10]} 16. Nxd7 {[%emt 0:01:49]} Qxd7 {[%emt 0:00:09]} 17. f5 {[%emt 0:00:20]} Qd6 {[%emt 0:03:18]} 18. fxe6 {[%emt 0:00:31]} Qg3+ {[%emt 0:00:11]} 19. Kd2 {[%emt 0:00:18]} fxe6 {[%emt 0:00:31]} 20. Bg6+ {[%emt 0:00:43]} Ke7 {[%emt 0:00:48]} 21. Rag1 {[%emt 0:05:45]} Qd6 {[%emt 0:00:55]} 22. Rf1 {[%emt 0:02:36]} Raf8 {[%emt 0:00:17]} 23. Rxf8 {[%emt 0:00:36]} Rxf8 {[%emt 0:00:08]} 24. Rf1 {[%emt 0:00:18]} Rxf1 {[%emt 0:00:16]} 25. Qxf1 {[%emt 0:00:07]} Kd8 {[%emt 0:00:07]} 26. Kd1 {[%emt 0:22:36]} cxd4 {[%emt 0:05:38]} 27. exd4 {[%emt 0:00:15]} e5 {[%emt 0:00:41]} 28. Qf7 {[%emt 0:01:53]} Qe7 {[%emt 0:00:28]} 29. dxe5 {[%emt 0:04:01]} Qxf7 {[%emt 0:00:19]} 30. Bxf7 {[%emt 0:00:08]} Ke7 {[%emt 0:00:02]} 31. Bg8 {[%emt 0:01:38]} g5 {[%emt 0:01:11]} 32. Kd2 {[%emt 0:00:33]} Kf8 {[%emt 0:10:10]} 33. Bh7 {[%emt 0:02:06]} Bc8 {[%emt 0:00:09]} 34. Bf5 {[%emt 0:01:38]} Bxf5 {[%emt 0:01:06]} 35. gxf5 {[%emt 0:00:05]} Kf7 {[%emt 0:00:05]} 36. Ke3 {[%emt 0:00:07]} h5 {[%emt 0:00:52]} 37. Kf3 {[%emt 0:00:22]} b5 {[%emt 0:00:14]} 38. b4 {[%emt 0:02:22]} a5 {[%emt 0:02:30]} 39. bxa5 {[%emt 0:00:13]} b4 {[%emt 0:00:05]} 40. a6 {[%emt 0:01:20]} bxc3 {[%emt 0:00:39]} 41. Ke2 {[%emt 0:30:13]} c2 {[%emt 0:29:46]} 42. Kd2 {[%emt 0:00:06]} g4 {[%emt 0:00:05]} 43. hxg4 {[%emt 0:00:22]} hxg4 {[%emt 0:01:16]} 44. a7 {[%emt 0:00:11]} g3 {[%emt 0:00:03]} 45. a8=Q {[%emt 0:00:13]} g2 {[%emt 0:00:09]} 46. Qxd5+ {[%emt 0:00:06]} 1-0

[Event "Skalica SCHAEFFLER Open 2019"]
[Site "Skalica"]
[Date "2019.08.28"]
[Round "5.5"]
[White "Vach, Jozef"]
[Black "Vozarova, Adriana"]
[Result "1/2-1/2"]
[ECO "D02"]
[WhiteElo "1722"]
[BlackElo "1647"]
[Annotator "NA"]
[PlyCount "60"]
[EventDate "2019.08.25"]
[EventType "swiss"]
[EventCountry "SVK"]
[SourceTitle "playchess.com"]
[Source "ChessBase"]
[SourceQuality "1"]
[TimeControl "40/5400+30:1800+30"]

1. d4 {[%emt 0:00:00]} d5 {[%emt 0:00:00]} 2. Nf3 {[%emt 0:00:10]} c6 {[%emt 0:00:09]} 3. b3 {[%emt 0:00:36]} e6 {[%emt 0:00:18]} 4. Bb2 {[%emt 0:00:11]} Bd6 {[%emt 0:00:21]} 5. Nbd2 {[%emt 0:00:12]} f5 {[%emt 0:00:27]} 6. g3 {[%emt 0:00:52]} Nf6 {[%emt 0:00:17]} 7. Bg2 {[%emt 0:00:15]} Nbd7 {[%emt 0:00:41]} 8. Ne5 {[%emt 0:00:13]} O-O {[%emt 0:00:49]} 9. e3 {[%emt 0:01:14]} Ne4 {[%emt 0:05:45]} 10. O-O {[%emt 0:01:14]} Ndf6 {[%emt 0:01:17]} 11. Ndf3 {[%emt 0:03:52]} Bd7 {[%emt 0:03:12]} 12. a4 {[%emt 0:07:30]} a5 {[%emt 0:01:15]} 13. Nxd7 {[%emt 0:06:37]} Qxd7 {[%emt 0:01:18]} 14. Ne5 {[%emt 0:00:37]} Qe7 {[%emt 0:01:52]} 15. f3 {[%emt 0:03:24]} Ng5 {[%emt 0:05:31]} 16. Qd3 {[%emt 0:02:11]} Qe8 {[%emt 0:13:14]} 17. h4 {[%emt 0:08:25]} Nf7 {[%emt 0:01:28]} 18. c4 {[%emt 0:05:28]} Nh5 {[%emt 0:08:41]} 19. g4 {[%emt 0:11:43]} Ng3 {[%emt 0:02:08]} 20. Rf2 {[%emt 0:00:36]} Nxe5 {[%emt 0:01:47]} 21. dxe5 {[%emt 0:00:51]} Bc5 {[%emt 0:02:36]} 22. Bd4 {[%emt 0:02:37]} dxc4 {[%emt 0:02:16]} 23. Qxc4 {[%emt 0:00:35]} Bxd4 {[%emt 0:00:22]} 24. Qxd4 {[%emt 0:01:03]} fxg4 {[%emt 0:02:06]} 25. Qxg4 {[%emt 0:00:47]} Nf5 {[%emt 0:00:50]} 26. Bh3 {[%emt 0:02:04]} Qd7 {[%emt 0:11:55]} 27. Qc4 {[%emt 0:03:58]} b5 {[%emt 0:03:10]} 28. Qe4 {[%emt 0:03:02]} Ng3 {[%emt 0:08:18]} 29. Qg4 {[%emt 0:01:22]} Nf5 {[%emt 0:00:13]} 30. Qe4 {[%emt 0:00:17]} Ng3 {[%emt 0:00:13]} 1/2-1/2

[Event "Skalica SCHAEFFLER Open 2019"]
[Site "Skalica"]
[Date "2019.08.28"]
[Round "5.6"]
[White "Kastler, Peter"]
[Black "Drabek, Martin"]
[Result "1-0"]
[ECO "D45"]
[WhiteElo "1724"]
[BlackElo "1381"]
[Annotator "NA"]
[PlyCount "45"]
[EventDate "2019.08.25"]
[EventType "swiss"]
[EventCountry "SVK"]
[SourceTitle "playchess.com"]
[Source "ChessBase"]
[SourceQuality "1"]
[TimeControl "40/5400+30:1800+30"]

1. d4 {[%emt 0:15:18]} d5 {[%emt 0:00:19]} 2. c4 {[%emt 0:00:06]} e6 {[%emt 0:00:19]} 3. Nc3 {[%emt 0:00:16]} Nf6 {[%emt 0:00:27]} 4. Nf3 {[%emt 0:00:29]} c6 {[%emt 0:00:33]} 5. e3 {[%emt 0:00:26]} Nbd7 {[%emt 0:00:29]} 6. Be2 {[%emt 0:00:10]} Bd6 {[%emt 0:00:39]} 7. b3 {[%emt 0:00:47]} b6 {[%emt 0:01:04]} 8. Bb2 {[%emt 0:02:47]} Qc7 {[%emt 0:06:48]} 9. Rc1 {[%emt 0:00:33]} h6 {[%emt 0:01:07]} 10. cxd5 {[%emt 0:00:58]} exd5 {[%emt 0:00:32]} 11. Nb5 {[%emt 0:01:23]} Bb4+ {[%emt 0:02:25]} 12. Bc3 {[%emt 0:01:10]} Bxc3+ {[%emt 0:00:58]} 13. Rxc3 {[%emt 0:00:43]} Qd8 {[%emt 0:04:10]} 14. Rxc6 {[%emt 0:01:25]} O-O {[%emt 0:00:55]} 15. Qc2 {[%emt 0:05:47]} Qe7 {[%emt 0:01:02]} 16. Nd6 {[%emt 0:02:33]} Ne4 {[%emt 0:03:35]} 17. Nxc8 {[%emt 0:01:13]} Qb4+ {[%emt 0:00:55]} 18. Kf1 {[%emt 0:02:46]} Ndf6 {[%emt 0:01:35]} 19. Bd3 {[%emt 0:01:18]} Ng4 {[%emt 0:02:52]} 20. Bxe4 {[%emt 0:00:31]} dxe4 {[%emt 0:00:40]} 21. Nd2 {[%emt 0:00:25]} Qb5+ {[%emt 0:02:09]} 22. Ke1 {[%emt 0:01:02]} Qf5 {[%emt 0:00:54]} 23. Ne7+ {[%emt 0:00:14]} 1-0

[Event "Skalica SCHAEFFLER Open 2019"]
[Site "Skalica"]
[Date "2019.08.28"]
[Round "5.7"]
[White "Kozusnik, Roman"]
[Black "Matusina, Miroslav"]
[Result "1-0"]
[ECO "E70"]
[WhiteElo "1231"]
[BlackElo "1644"]
[Annotator "NA"]
[PlyCount "42"]
[EventDate "2019.08.25"]
[EventType "swiss"]
[EventCountry "SVK"]
[SourceTitle "playchess.com"]
[Source "ChessBase"]
[SourceQuality "1"]
[TimeControl "40/5400+30:1800+30"]

1. d4 {[%emt 0:00:00]} Nf6 {[%emt 0:00:00]} 2. c4 {[%emt 0:00:12]} g6 {[%emt 0:00:00]} 3. Nc3 {[%emt 0:00:48]} Bg7 {[%emt 0:00:07]} 4. e4 {[%emt 0:01:51]} d6 {[%emt 0:00:09]} 5. Be3 {[%emt 0:02:12]} O-O {[%emt 0:00:17]} 6. Bd3 {[%emt 0:03:24]} Re8 {[%emt 0:00:16]} 7. Nge2 {[%emt 0:01:20]} Nc6 {[%emt 0:00:22]} 8. O-O {[%emt 0:01:44]} e5 {[%emt 0:00:15]} 9. d5 {[%emt 0:06:18]} Ne7 {[%emt 0:00:14]} 10. Qd2 {[%emt 0:01:34]} Bh8 {[%emt 0:00:18]} 11. f4 {[%emt 0:00:48]} exf4 {[%emt 0:00:54]} 12. Bxf4 {[%emt 0:02:07]} Nh5 {[%emt 0:01:36]} 13. Be3 {[%emt 0:08:58]} Bg4 {[%emt 0:00:25]} 14. Nf4 {[%emt 0:00:59]} Ng7 {[%emt 0:02:43]} 15. Qf2 {[%emt 0:01:22]} Rf8 {[%emt 0:01:14]} 16. Qh4 {[%emt 0:01:40]} f5 {[%emt 0:01:14]} 17. h3 {[%emt 0:03:30]} fxe4 {[%emt 0:02:27]} 18. Qxg4 {[%emt 0:03:31]} Rxf4 {[%emt 0:03:02]} 19. Qxf4 {[%emt 0:02:57]} Nef5 {[%emt 0:03:51]} 20. Bxe4 {[%emt 0:05:14]} Nh5 {[%emt 0:00:11]} 21. Qf3 {[%emt 0:12:55]} Nxe3 {[%emt 0:00:38]} 1-0